[Event "Live Chess"]
[Site "Chess.com"]
[Date "2024.06.01"]
[Round "-"]
[White "Colm_Buckley"]
[Black "SirGerhard"]
[Result "0-1"]
[WhiteElo "1791"]
[BlackElo "2771"]
[TimeControl "300"]
[EndTime "10:53:14 PDT"]
[Termination "SirGerhard won by resignation"]

1. d4 {[%clk 0:04:56.9]} 1... Nf6 {[%clk 0:04:58.3]} 2. c4 {[%clk 0:04:56.3]}
2... e6 {[%clk 0:04:57.4]} 3. Nc3 {[%clk 0:04:55.9]} 3... Bb4 {[%clk 0:04:56.4]}
4. Nf3 {[%clk 0:04:55.4]} 4... O-O {[%clk 0:04:55.6]} 5. Qc2 {[%clk 0:04:54.6]}
5... c5 {[%clk 0:04:54.1]} 6. a3 {[%clk 0:04:53.9]} 6... Bxc3+ {[%clk
0:04:48.4]} 7. Qxc3 {[%clk 0:04:51.9]} 7... b6 {[%clk 0:04:44]} 8. dxc5 {[%clk
0:04:50.3]} 8... bxc5 {[%clk 0:04:43.1]} 9. Bf4 {[%clk 0:04:46.4]} 9... Bb7
{[%clk 0:04:41.2]} 10. e3 {[%clk 0:04:44.8]} 10... Ne4 {[%clk 0:04:37.6]} 11.
Qc2 {[%clk 0:04:43.2]} 11... Qa5+ {[%clk 0:04:36.3]} 12. Nd2 {[%clk 0:04:36.5]}
12... Nxd2 {[%clk 0:04:16.7]} 13. Qxd2 {[%clk 0:04:35]} 13... Qxd2+ {[%clk
0:04:15.1]} 14. Kxd2 {[%clk 0:04:33.9]} 14... Nc6 {[%clk 0:04:14.6]} 15. Bd6
{[%clk 0:04:26.8]} 15... Rfc8 {[%clk 0:04:13.2]} 16. Bxc5 {[%clk 0:04:25.7]}
16... Na5 {[%clk 0:04:12.4]} 0-1

[Event "Live Chess"]
[Site "Chess.com"]
[Date "2024.06.01"]
[Round "-"]
[White "ossie57"]
[Black "GoldsmanB"]
[Result "1-0"]
[WhiteElo "1633"]
[BlackElo "1044"]
[TimeControl "300"]
[EndTime "10:53:16 PDT"]
[Termination "ossie57 won by resignation"]

1. d4 {[%clk 0:04:58.8]} 1... Nf6 {[%clk 0:04:58.3]} 2. Nc3 {[%clk 0:04:57.9]}
2... e6 {[%clk 0:04:56.8]} 3. Bf4 {[%clk 0:04:56.8]} 3... Bb4 {[%clk 0:04:51.5]}
4. Qd3 {[%clk 0:04:55.8]} 4... d5 {[%clk 0:04:46.1]} 5. O-O-O {[%clk 0:04:52.9]}
5... Nc6 {[%clk 0:04:45.1]} 6. a3 {[%clk 0:04:51.9]} 6... Bd6 {[%clk 0:04:43.4]}
7. Qg3 {[%clk 0:04:32.9]} 7... Bxf4+ {[%clk 0:04:39.6]} 8. Qxf4 {[%clk
0:04:32.8]} 8... Nh5 {[%clk 0:04:36.4]} 9. Qg4 {[%clk 0:04:26.6]} 9... g6 {[%clk
0:04:29.6]} 10. e4 {[%clk 0:04:14.2]} 10... dxe4 {[%clk 0:04:27.3]} 11. Qxe4
{[%clk 0:04:13]} 11... Qg5+ {[%clk 0:04:23.6]} 12. Kb1 {[%clk 0:04:10.6]} 12...
Qf5 {[%clk 0:04:19.2]} 13. Qxf5 {[%clk 0:04:07]} 13... gxf5 {[%clk 0:04:17.1]}
14. Nb5 {[%clk 0:04:05.6]} 14... Kd7 {[%clk 0:04:07.1]} 15. d5 {[%clk
0:04:04.6]} 15... exd5 {[%clk 0:04:03.9]} 16. Rxd5+ {[%clk 0:04:03.2]} 16... Ke6
{[%clk 0:04:01.9]} 17. Nxc7+ {[%clk 0:03:56.5]} 17... Ke7 {[%clk 0:03:57.4]} 18.
Nxa8 {[%clk 0:03:55.5]} 1-0

[Event "Live Chess"]
[Site "Chess.com"]
[Date "2024.06.01"]
[Round "-"]
[White "Cruiseylee78"]
[Black "road2gm5000"]
[Result "1-0"]
[WhiteElo "1677"]
[BlackElo "1078"]
[TimeControl "300"]
[EndTime "10:53:23 PDT"]
[Termination "Cruiseylee78 won by checkmate"]

1. d4 {[%clk 0:04:58.9]} 1... d5 {[%clk 0:04:58.5]} 2. Bf4 {[%clk 0:04:57.8]}
2... Bf5 {[%clk 0:04:55.9]} 3. e3 {[%clk 0:04:57]} 3... e6 {[%clk 0:04:55.6]} 4.
Bd3 {[%clk 0:04:56.4]} 4... Bxd3 {[%clk 0:04:53.9]} 5. Qxd3 {[%clk 0:04:55.4]}
5... Bd6 {[%clk 0:04:53.4]} 6. Nf3 {[%clk 0:04:54.5]} 6... Bxf4 {[%clk 0:04:52]}
7. exf4 {[%clk 0:04:54.4]} 7... Nc6 {[%clk 0:04:48.2]} 8. Nbd2 {[%clk
0:04:53.4]} 8... Nf6 {[%clk 0:04:47.7]} 9. c3 {[%clk 0:04:52.6]} 9... Qe7 {[%clk
0:04:45.2]} 10. O-O-O {[%clk 0:04:51.6]} 10... O-O-O {[%clk 0:04:43.8]} 11. Rde1
{[%clk 0:04:48.4]} 11... Qd6 {[%clk 0:04:41.8]} 12. f5 {[%clk 0:04:45.6]} 12...
Rhe8 {[%clk 0:04:31.7]} 13. fxe6 {[%clk 0:04:44]} 13... fxe6 {[%clk 0:04:31.6]}
14. Ne5 {[%clk 0:04:41]} 14... Ne7 {[%clk 0:04:03.2]} 15. Nf7 {[%clk 0:04:37.1]}
15... Qc6 {[%clk 0:03:52.6]} 16. Nxd8 {[%clk 0:04:35.2]} 16... Rxd8 {[%clk
0:03:49.4]} 17. Nb3 {[%clk 0:04:32.8]} 17... Nf5 {[%clk 0:03:48.2]} 18. Nc5
{[%clk 0:04:27.6]} 18... Re8 {[%clk 0:03:44.4]} 19. Re2 {[%clk 0:04:20.2]} 19...
b6 {[%clk 0:03:36]} 20. Na6 {[%clk 0:04:17.6]} 20... Ne4 {[%clk 0:03:31.1]} 21.
f3 {[%clk 0:04:10.1]} 21... Ned6 {[%clk 0:03:26.1]} 22. Nb4 {[%clk 0:04:08.8]}
22... Qa4 {[%clk 0:03:23.8]} 23. b3 {[%clk 0:04:05.6]} 23... Qa3+ {[%clk
0:03:20.3]} 24. Kb1 {[%clk 0:04:03.9]} 24... Nb5 {[%clk 0:03:13.1]} 25. Qxb5
{[%clk 0:04:01]} 25... a5 {[%clk 0:03:07.1]} 26. Qxe8+ {[%clk 0:03:59.1]} 26...
Kb7 {[%clk 0:03:06]} 27. Qc6+ {[%clk 0:03:56.8]} 27... Kb8 {[%clk 0:03:04.9]}
28. Na6+ {[%clk 0:03:54.3]} 28... Kc8 {[%clk 0:03:03.4]} 29. Qxc7# {[%clk
0:03:53.7]} 1-0

[Event "Live Chess"]
[Site "Chess.com"]
[Date "2024.06.01"]
[Round "-"]
[White "dhairyapandyauk"]
[Black "willc-h99"]
[Result "0-1"]
[WhiteElo "1740"]
[BlackElo "2642"]
[TimeControl "300"]
[EndTime "10:53:27 PDT"]
[Termination "willc-h99 won by resignation"]

1. e4 {[%clk 0:04:58.1]} 1... g6 {[%clk 0:04:58.7]} 2. d4 {[%clk 0:04:56.4]}
2... Bg7 {[%clk 0:04:54]} 3. c4 {[%clk 0:04:54.8]} 3... d6 {[%clk 0:04:49.3]} 4.
Nc3 {[%clk 0:04:53.2]} 4... Nf6 {[%clk 0:04:47.9]} 5. f4 {[%clk 0:04:49.4]} 5...
O-O {[%clk 0:04:46.4]} 6. Nf3 {[%clk 0:04:46.6]} 6... Nbd7 {[%clk 0:04:41.1]} 7.
Bd3 {[%clk 0:04:44.2]} 7... e5 {[%clk 0:04:39.7]} 8. fxe5 {[%clk 0:04:38.3]}
8... dxe5 {[%clk 0:04:38.7]} 9. d5 {[%clk 0:04:35.4]} 9... Nh5 {[%clk
0:04:28.1]} 10. O-O {[%clk 0:04:31.5]} 10... Kh8 {[%clk 0:04:17.3]} 11. Be3
{[%clk 0:04:16.6]} 11... Nf4 {[%clk 0:04:10.8]} 12. Bxf4 {[%clk 0:04:14.7]}
12... exf4 {[%clk 0:04:09.7]} 13. Qd2 {[%clk 0:04:12.7]} 13... Ne5 {[%clk
0:04:07.5]} 14. Nxe5 {[%clk 0:04:05.6]} 14... Bxe5 {[%clk 0:04:05.7]} 15. Ne2
{[%clk 0:04:04.7]} 15... g5 {[%clk 0:04:04.6]} 16. g3 {[%clk 0:03:57.2]} 16...
fxg3 {[%clk 0:03:58.7]} 17. Nxg3 {[%clk 0:03:55.6]} 17... Bh3 {[%clk 0:03:48.3]}
18. Rf5 {[%clk 0:03:50.2]} 18... Bxf5 {[%clk 0:03:46.3]} 19. Nxf5 {[%clk
0:03:47.4]} 19... Qf6 {[%clk 0:03:37.6]} 20. Rf1 {[%clk 0:03:43.9]} 20... Qb6+
{[%clk 0:03:32.9]} 21. Kh1 {[%clk 0:03:40.2]} 21... Qxb2 {[%clk 0:03:29.9]} 22.
Bc2 {[%clk 0:03:20.6]} 22... Qc3 {[%clk 0:03:13.8]} 23. Qxg5 {[%clk 0:03:18.1]}
23... Qxc2 {[%clk 0:03:06.2]} 24. Qh6 {[%clk 0:03:10.8]} 24... Qxe4+ {[%clk
0:03:03.1]} 25. Kg1 {[%clk 0:03:07.8]} 25... Rg8+ {[%clk 0:02:58.4]} 26. Ng3
{[%clk 0:03:02]} 26... Bd4+ {[%clk 0:02:46.1]} 0-1

[Event "Live Chess"]
[Site "Chess.com"]
[Date "2024.06.01"]
[Round "-"]
[White "SergiiA"]
[Black "degringolade64"]
[Result "0-1"]
[WhiteElo "1535"]
[BlackElo "2051"]
[TimeControl "300"]
[EndTime "10:53:31 PDT"]
[Termination "degringolade64 won on time"]

1. c4 {[%clk 0:04:58.8]} 1... e5 {[%clk 0:04:58.5]} 2. Nc3 {[%clk 0:04:58]} 2...
Nf6 {[%clk 0:04:57.4]} 3. e4 {[%clk 0:04:57.6]} 3... Bb4 {[%clk 0:04:54]} 4.
Nge2 {[%clk 0:04:56.1]} 4... O-O {[%clk 0:04:47.7]} 5. g3 {[%clk 0:04:55.1]}
5... b5 {[%clk 0:04:26.8]} 6. cxb5 {[%clk 0:04:42]} 6... a6 {[%clk 0:04:25.5]}
7. bxa6 {[%clk 0:04:37.1]} 7... Bxa6 {[%clk 0:04:24.5]} 8. Bg2 {[%clk
0:04:36.7]} 8... c6 {[%clk 0:04:16.9]} 9. O-O {[%clk 0:04:34.6]} 9... d5 {[%clk
0:04:15]} 10. exd5 {[%clk 0:04:32.7]} 10... cxd5 {[%clk 0:04:13.6]} 11. a3
{[%clk 0:04:17.9]} 11... Bc5 {[%clk 0:04:00.4]} 12. b4 {[%clk 0:04:13.6]} 12...
Ba7 {[%clk 0:03:57.7]} 13. Re1 {[%clk 0:04:09.7]} 13... Bd3 {[%clk 0:03:25.7]}
14. h3 {[%clk 0:04:07.1]} 14... d4 {[%clk 0:03:23.2]} 15. Na2 {[%clk 0:03:32.6]}
15... e4 {[%clk 0:03:18.6]} 16. Nf4 {[%clk 0:03:26]} 16... Nc6 {[%clk
0:03:10.6]} 17. Nxd3 {[%clk 0:03:21.1]} 17... exd3 {[%clk 0:03:10.5]} 18. Bxc6
{[%clk 0:03:19.2]} 18... Rc8 {[%clk 0:03:02.6]} 19. Bg2 {[%clk 0:03:16.5]} 19...
Qd6 {[%clk 0:02:52.1]} 20. Bb2 {[%clk 0:02:52.8]} 20... Rc2 {[%clk 0:02:49.8]}
21. Rb1 {[%clk 0:02:51.4]} 21... Qa6 {[%clk 0:02:21.1]} 22. Nc1 {[%clk
0:02:40.6]} 22... Rfc8 {[%clk 0:02:08.7]} 23. Nb3 {[%clk 0:02:33.1]} 23... Qd6
{[%clk 0:01:42.5]} 24. Qf3 {[%clk 0:02:07.1]} 24... Nd7 {[%clk 0:01:19.4]} 25.
Qxd3 {[%clk 0:01:50.9]} 25... Ne5 {[%clk 0:01:17.2]} 26. Qe4 {[%clk 0:01:44.7]}
26... f6 {[%clk 0:01:11.2]} 27. Qd5+ {[%clk 0:01:33]} 27... Qxd5 {[%clk
0:01:10.4]} 28. Bxd5+ {[%clk 0:01:31.8]} 28... Kf8 {[%clk 0:01:10.1]} 29. Nxd4
{[%clk 0:01:19.5]} 29... Rxd2 {[%clk 0:01:06.9]} 30. Ne6+ {[%clk 0:01:13.2]}
30... Ke7 {[%clk 0:01:04.6]} 31. Bb3 {[%clk 0:01:06.6]} 31... Bxf2+ {[%clk
0:01:02]} 32. Kh1 {[%clk 0:01:04]} 32... Bxe1 {[%clk 0:01:00.2]} 33. Bxe5 {[%clk
0:00:56.7]} 33... fxe5 {[%clk 0:00:52.1]} 34. Rxe1 {[%clk 0:00:52.2]} 34... Rc3
{[%clk 0:00:50]} 35. Nc5 {[%clk 0:00:24.6]} 35... Kf6 {[%clk 0:00:48.6]} 36. Kg1
{[%clk 0:00:21.5]} 36... Rxg3+ {[%clk 0:00:47.3]} 37. Kh1 {[%clk 0:00:19.9]}
37... Rxh3+ {[%clk 0:00:46.2]} 38. Kg1 {[%clk 0:00:19.4]} 38... Rg3+ {[%clk
0:00:45]} 39. Kf1 {[%clk 0:00:17]} 39... Rf3+ {[%clk 0:00:41.5]} 40. Kg1 {[%clk
0:00:16.2]} 40... Rb2 {[%clk 0:00:33.5]} 41. Ne4+ {[%clk 0:00:14.3]} 41... Kf5
{[%clk 0:00:28.9]} 42. Bd5 {[%clk 0:00:10]} 42... h5 {[%clk 0:00:20.3]} 43. Nd6+
{[%clk 0:00:09]} 43... Kf4 {[%clk 0:00:17.6]} 44. Bxf3 {[%clk 0:00:07.9]} 44...
Kxf3 {[%clk 0:00:17.5]} 45. Nf7 {[%clk 0:00:05.2]} 45... e4 {[%clk 0:00:15.9]}
46. Ng5+ {[%clk 0:00:04.3]} 46... Kf4 {[%clk 0:00:14]} 47. Nxe4 {[%clk
0:00:03.7]} 47... Ra2 {[%clk 0:00:12.2]} 48. Nc5 {[%clk 0:00:01.4]} 48... Rxa3
{[%clk 0:00:10.8]} 49. b5 {[%clk 0:00:00.8]} 49... Ra5 {[%clk 0:00:09.3]} 0-1

[Event "Live Chess"]
[Site "Chess.com"]
[Date "2024.06.01"]
[Round "-"]
[White "RuslanChessN"]
[Black "Mangoalo"]
[Result "1-0"]
[WhiteElo "1928"]
[BlackElo "1013"]
[TimeControl "300"]
[EndTime "10:53:38 PDT"]
[Termination "RuslanChessN won by resignation"]

1. d4 {[%clk 0:04:57.1]} 1... d5 {[%clk 0:04:59.9]} 2. c4 {[%clk 0:04:56.1]}
2... Nc6 {[%clk 0:04:59.8]} 3. cxd5 {[%clk 0:04:51.5]} 3... Qxd5 {[%clk
0:04:57.5]} 4. Nf3 {[%clk 0:04:50.7]} 4... Bg4 {[%clk 0:04:54.3]} 5. Nc3 {[%clk
0:04:49.2]} 5... Qd8 {[%clk 0:04:51.2]} 6. d5 {[%clk 0:04:40.6]} 6... Bxf3
{[%clk 0:04:50.1]} 7. gxf3 {[%clk 0:04:37.7]} 7... Nf6 {[%clk 0:04:46.9]} 8.
dxc6 {[%clk 0:04:34.7]} 8... Qxd1+ {[%clk 0:04:46.8]} 9. Kxd1 {[%clk 0:04:33.2]}
9... bxc6 {[%clk 0:04:46.7]} 10. e4 {[%clk 0:04:30.7]} 10... O-O-O+ {[%clk
0:04:46.6]} 11. Kc2 {[%clk 0:04:26.7]} 11... e5 {[%clk 0:04:46.5]} 12. Ba6+
{[%clk 0:04:20.3]} 12... Kb8 {[%clk 0:04:43.8]} 13. Be3 {[%clk 0:04:19.7]} 13...
Bb4 {[%clk 0:04:42.2]} 14. Rhd1 {[%clk 0:04:17.2]} 14... Bxc3 {[%clk 0:04:40.6]}
15. bxc3 {[%clk 0:04:13.5]} 15... Rd6 {[%clk 0:04:37.6]} 16. Rab1+ {[%clk
0:04:11.9]} 16... Ka8 {[%clk 0:04:35.6]} 17. Rb7 {[%clk 0:04:03.9]} 17... Ne8
{[%clk 0:04:27.8]} 18. Bxa7 {[%clk 0:03:54.7]} 18... c5 {[%clk 0:04:23.6]} 19.
Rxd6 {[%clk 0:03:48.5]} 19... Nxd6 {[%clk 0:04:19.1]} 20. Rxc7 {[%clk
0:03:44.4]} 20... c4 {[%clk 0:04:14.8]} 21. Bc5 {[%clk 0:03:36.6]} 1-0

[Event "Live Chess"]
[Site "Chess.com"]
[Date "2024.06.01"]
[Round "-"]
[White "jimwad"]
[Black "powerchs"]
[Result "0-1"]
[WhiteElo "1230"]
[BlackElo "1250"]
[TimeControl "300"]
[EndTime "10:54:04 PDT"]
[Termination "powerchs won by resignation"]

1. d4 {[%clk 0:04:58.9]} 1... Nf6 {[%clk 0:04:56.7]} 2. c4 {[%clk 0:04:53.7]}
2... g6 {[%clk 0:04:54.5]} 3. Nc3 {[%clk 0:04:52.2]} 3... Bg7 {[%clk 0:04:53.5]}
4. Bf4 {[%clk 0:04:50.4]} 4... O-O {[%clk 0:04:52.2]} 5. e3 {[%clk 0:04:49.5]}
5... Nh5 {[%clk 0:04:49.7]} 6. Nge2 {[%clk 0:04:45.1]} 6... Nxf4 {[%clk
0:04:45.3]} 7. Nxf4 {[%clk 0:04:42.4]} 7... d6 {[%clk 0:04:44.4]} 8. Bd3 {[%clk
0:04:41.3]} 8... e5 {[%clk 0:04:42.9]} 9. Nfe2 {[%clk 0:04:37.8]} 9... f5 {[%clk
0:04:34.5]} 10. f4 {[%clk 0:04:17]} 10... e4 {[%clk 0:04:25.1]} 11. Bc2 {[%clk
0:04:14.1]} 11... c6 {[%clk 0:04:22.7]} 12. Bb3 {[%clk 0:04:12.8]} 12... d5
{[%clk 0:04:20.6]} 13. cxd5 {[%clk 0:04:11.6]} 13... cxd5 {[%clk 0:04:18.9]} 14.
Bxd5+ {[%clk 0:04:08.8]} 14... Kh8 {[%clk 0:04:17.2]} 15. O-O {[%clk 0:04:06.9]}
15... Nc6 {[%clk 0:04:14.3]} 16. Bxc6 {[%clk 0:04:04.3]} 16... bxc6 {[%clk
0:04:13.3]} 17. d5 {[%clk 0:04:00]} 17... Ba6 {[%clk 0:04:03.9]} 18. Re1 {[%clk
0:03:52.3]} 18... Bxe2 {[%clk 0:03:52.2]} 19. Nxe2 {[%clk 0:03:47.5]} 19... cxd5
{[%clk 0:03:50.2]} 20. Nd4 {[%clk 0:03:41.8]} 20... Qb6 {[%clk 0:03:38.2]} 21.
b3 {[%clk 0:03:35]} 21... Bxd4 {[%clk 0:03:34.9]} 22. exd4 {[%clk 0:03:32]}
22... Rac8 {[%clk 0:03:32.3]} 23. Qd2 {[%clk 0:03:27]} 23... Rc7 {[%clk
0:03:27.8]} 24. Rac1 {[%clk 0:03:25.7]} 24... Rfc8 {[%clk 0:03:26.7]} 25. Rxc7
{[%clk 0:03:24.3]} 25... Rxc7 {[%clk 0:03:24.2]} 26. Rd1 {[%clk 0:03:16.4]}
26... Qc6 {[%clk 0:03:15]} 27. g3 {[%clk 0:03:12.7]} 27... Qc3 {[%clk
0:03:07.3]} 28. Qxc3 {[%clk 0:03:06]} 28... Rxc3 {[%clk 0:03:06.2]} 29. Kf1
{[%clk 0:03:04.9]} 29... Kg7 {[%clk 0:03:04.7]} 30. Ke2 {[%clk 0:03:02]} 30...
Kf7 {[%clk 0:03:01.8]} 31. Rd2 {[%clk 0:02:54.1]} 31... Ke7 {[%clk 0:02:58.8]}
32. b4 {[%clk 0:02:49.9]} 32... Kd6 {[%clk 0:02:57.4]} 33. a4 {[%clk 0:02:47.1]}
33... Kc6 {[%clk 0:02:56.2]} 34. b5+ {[%clk 0:02:45.1]} 34... Kb6 {[%clk
0:02:54.8]} 35. Rb2 {[%clk 0:02:39.9]} 35... Ka5 {[%clk 0:02:53.3]} 36. Ra2
{[%clk 0:02:30.5]} 36... Rc4 {[%clk 0:02:48.6]} 37. Ke3 {[%clk 0:02:24.6]} 37...
Rxa4 {[%clk 0:02:45.8]} 38. Rb2 {[%clk 0:02:08.5]} 38... Rb4 {[%clk 0:02:43.7]}
39. Ra2+ {[%clk 0:02:06.9]} 39... Kb6 {[%clk 0:02:42.4]} 40. Kd2 {[%clk
0:01:59.7]} 40... Rxd4+ {[%clk 0:02:40]} 41. Kc3 {[%clk 0:01:58]} 41... Rd3+
{[%clk 0:02:37.6]} 42. Kb4 {[%clk 0:01:55.4]} 42... d4 {[%clk 0:02:32.3]} 43.
Ra6+ {[%clk 0:01:53.9]} 43... Kb7 {[%clk 0:02:30.7]} 44. Kc5 {[%clk 0:01:50.6]}
44... e3 {[%clk 0:02:26.8]} 45. Rf6 {[%clk 0:01:46.8]} 45... e2 {[%clk
0:02:25.1]} 46. Rf7+ {[%clk 0:01:45.2]} 46... Kc8 {[%clk 0:02:23.3]} 47. Kc6
{[%clk 0:01:43.5]} 47... Kd8 {[%clk 0:02:22.2]} 48. Kd6 {[%clk 0:01:37.4]} 48...
Ke8 {[%clk 0:02:19.3]} 49. Rxa7 {[%clk 0:01:34.4]} 49... e1=Q {[%clk 0:02:15.5]}
50. b6 {[%clk 0:01:31.6]} 50... Qb4+ {[%clk 0:02:09.4]} 51. Kc7 {[%clk
0:01:27.2]} 51... Rc3+ {[%clk 0:02:07.8]} 52. Kb7 {[%clk 0:01:20.9]} 52... d3
{[%clk 0:02:00.2]} 53. Ra8+ {[%clk 0:01:19.3]} 53... Ke7 {[%clk 0:01:58.7]} 54.
Ka7 {[%clk 0:01:18.2]} 54... Qa5+ {[%clk 0:01:54.9]} 55. Kb7 {[%clk 0:01:16.2]}
55... Qxa8+ {[%clk 0:01:51.3]} 56. Kxa8 {[%clk 0:01:15]} 56... Rb3 {[%clk
0:01:50.2]} 57. b7 {[%clk 0:01:14.6]} 57... d2 {[%clk 0:01:48.5]} 58. b8=Q
{[%clk 0:01:12.5]} 58... Rxb8+ {[%clk 0:01:46.8]} 0-1

[Event "Live Chess"]
[Site "Chess.com"]
[Date "2024.06.01"]
[Round "-"]
[White "sshamil"]
[Black "Stanbad1"]
[Result "0-1"]
[WhiteElo "1678"]
[BlackElo "2678"]
[TimeControl "300"]
[EndTime "10:54:11 PDT"]
[Termination "Stanbad1 won by resignation"]

1. g3 {[%clk 0:04:55.4]} 1... Nf6 {[%clk 0:04:59]} 2. Nc3 {[%clk 0:04:53.4]}
2... g6 {[%clk 0:04:58.4]} 3. d3 {[%clk 0:04:52.7]} 3... Bg7 {[%clk 0:04:57.9]}
4. Nf3 {[%clk 0:04:51.2]} 4... d6 {[%clk 0:04:57.5]} 5. Bg2 {[%clk 0:04:50.4]}
5... O-O {[%clk 0:04:57.1]} 6. O-O {[%clk 0:04:48.6]} 6... Nbd7 {[%clk
0:04:56.7]} 7. e4 {[%clk 0:04:47.7]} 7... c5 {[%clk 0:04:56.2]} 8. Be3 {[%clk
0:04:44.5]} 8... Rb8 {[%clk 0:04:55.7]} 9. Rb1 {[%clk 0:04:42.9]} 9... b5 {[%clk
0:04:54.8]} 10. b3 {[%clk 0:04:42.1]} 10... Ng4 {[%clk 0:04:53.8]} 11. Nd5
{[%clk 0:04:36.2]} 11... e6 {[%clk 0:04:51]} 12. Nf4 {[%clk 0:04:34.5]} 12...
Nxe3 {[%clk 0:04:49.2]} 13. fxe3 {[%clk 0:04:33]} 13... Bb7 {[%clk 0:04:48.3]}
14. Qe2 {[%clk 0:04:25.9]} 14... a6 {[%clk 0:04:46.1]} 15. d4 {[%clk 0:04:19.8]}
15... Bxe4 {[%clk 0:04:43.9]} 16. dxc5 {[%clk 0:04:18.4]} 16... Nxc5 {[%clk
0:04:43.6]} 17. Rbc1 {[%clk 0:04:14.6]} 17... Qb6 {[%clk 0:04:42]} 18. Nd3
{[%clk 0:04:10.1]} 18... Nxd3 {[%clk 0:04:40]} 19. cxd3 {[%clk 0:04:09.2]} 19...
Bb7 {[%clk 0:04:39.5]} 20. d4 {[%clk 0:04:06.4]} 20... Rbc8 {[%clk 0:04:38]} 21.
Qd3 {[%clk 0:04:02.7]} 21... e5 {[%clk 0:04:36.4]} 22. d5 {[%clk 0:03:52.7]}
22... f5 {[%clk 0:04:33.7]} 23. Nd2 {[%clk 0:03:45.5]} 23... e4 {[%clk 0:04:32]}
24. Qe2 {[%clk 0:03:43.5]} 24... Bxd5 {[%clk 0:04:30.4]} 25. Rfd1 {[%clk
0:03:39]} 25... Bb7 {[%clk 0:04:28.9]} 26. a4 {[%clk 0:03:32.6]} 26... d5 {[%clk
0:04:27.8]} 27. axb5 {[%clk 0:03:30.1]} 27... axb5 {[%clk 0:04:27.7]} 28. Bf1
{[%clk 0:03:26.2]} 28... d4 {[%clk 0:04:26.7]} 29. exd4 {[%clk 0:03:21.4]} 29...
Bxd4+ {[%clk 0:04:25.4]} 30. Kh1 {[%clk 0:03:18.5]} 30... b4 {[%clk 0:04:22.6]}
31. Nc4 {[%clk 0:03:15.3]} 31... Qf6 {[%clk 0:04:20.4]} 32. Bg2 {[%clk
0:03:12.7]} 32... Rfd8 {[%clk 0:04:18.5]} 33. Rf1 {[%clk 0:03:08.1]} 33... Bc3
{[%clk 0:04:16.9]} 34. Na5 {[%clk 0:02:46.5]} 34... Bd5 {[%clk 0:04:01.8]} 35.
Nc4 {[%clk 0:02:36.3]} 35... Bxc4 {[%clk 0:03:58.1]} 36. bxc4 {[%clk 0:02:33.7]}
36... Qd4 {[%clk 0:03:56.6]} 37. Rfd1 {[%clk 0:02:27.3]} 37... Qc5 {[%clk
0:03:50.7]} 38. g4 {[%clk 0:02:21.1]} 38... Rxd1+ {[%clk 0:03:48.6]} 39. Rxd1
{[%clk 0:02:17.9]} 39... Qxc4 {[%clk 0:03:44.8]} 40. Qc2 {[%clk 0:02:09.2]}
40... b3 {[%clk 0:03:38]} 41. Qf2 {[%clk 0:02:05.1]} 41... Rf8 {[%clk
0:03:31.4]} 42. gxf5 {[%clk 0:01:59.8]} 42... Rxf5 {[%clk 0:03:29.4]} 43. Qb6
{[%clk 0:01:47.2]} 43... Bg7 {[%clk 0:03:19.1]} 44. Rd8+ {[%clk 0:01:36]} 44...
Bf8 {[%clk 0:03:17.3]} 45. h3 {[%clk 0:01:18]} 45... Qc1+ {[%clk 0:03:13.3]} 46.
Kh2 {[%clk 0:01:16.6]} 46... Qf4+ {[%clk 0:03:12.1]} 47. Kh1 {[%clk 0:01:15.2]}
47... Qc1+ {[%clk 0:03:01.7]} 48. Kh2 {[%clk 0:01:13.8]} 48... Qc4 {[%clk
0:03:00.4]} 49. Qb8 {[%clk 0:00:47.6]} 49... e3 {[%clk 0:02:54.8]} 50. Rxf8+
{[%clk 0:00:38.2]} 50... Rxf8 {[%clk 0:02:52.4]} 51. Qe5 {[%clk 0:00:31.3]}
51... Qf4+ {[%clk 0:02:50]} 0-1